Cogmind - Beta 12 @@@ ROGUE MODE // 2023.03.11 @ 16:23:58 Player: Heclapar Result: Destroyed by Y-54 Guardian with Gatling Laser Performance ------------- Evolutions (3) 1500 Regions Visited (12) 2400 Robots Destroyed (130) 650 Value Destroyed (5279) 5279 Prototype IDs (31) 620 Alien Tech Used (0) 0 Bonus (3971) 3971 TOTAL SCORE: 14420 Bonus ------- High Alert Combat Kills 1024 Follower Combat Kills 173 Entered Garrisons 800 Used RIF Installer 2000 Aligned with FarCom 300 Friendly Fire -326 Cogmind --------- Core Integrity 0/700 Matter 149/300 Energy 294/310 System Corruption 3% Temperature Cool (12) Movement Walking (190) Ox1 Location -7/Garrison Parts ------- > --- POWER (1) -------- Cooled Deuterium Engine > --- PROPULSION (4) --- Carbon-fiber Leg Carbon-fiber Leg Flexi-carbon Leg Flexi-carbon Leg > --- UTILITY (4) ------ Improved Heat Sink Huge Storage Unit Hardened Heavy Armor Plating > --- WEAPON (4) ------- Enhanced Autogun Precision Assault Rifle Mini Grenade Launcher Mini Grenade Launcher > --- INVENTORY (25) --- Light Antimatter Reactor Light Quantum Reactor Medium Treads Improved Heat Sink Improved Heat Sink Large Battery (200) Cloak of Protection Hardened Medium Armor Plating Hacking Suite Relay Coupler [NC] (31) Relay Coupler [NC] (35) Relay Coupler [Grunt] (29) Relay Coupler [Grunt] (39) Relay Coupler [Brawler] (34) Relay Coupler [Sentry] (29) Relay Coupler [Sentry] (37) Relay Coupler [Hunter] (19) Gatling Laser Gatling Laser Gatling Laser Gauss Rifle Coil Gun Remote Datajack Remote Datajack Peak State ------------ > --- POWER ------------ Cooled Deuterium Engine > --- PROPULSION ------- Carbon-fiber Leg Flexi-carbon Leg Flexi-carbon Leg Flexi-carbon Leg > --- UTILITY ---------- Improved Heat Sink Huge Storage Unit Improved Salvage Targeting Computer Powered Armor > --- WEAPON ----------- Gatling Laser Plasma Rifle Enhanced Autogun Precision Assault Rifle > --- INVENTORY -------- Light Quantum Reactor Medium Treads Improved Heat Sink Improved Heat Sink Large Battery Weapon Cycler Cloak of Protection Hardened Medium Armor Plating Hacking Suite Relay Coupler [NC] Relay Coupler [NC] Relay Coupler [Grunt] Relay Coupler [Grunt] Relay Coupler [Brawler] Relay Coupler [Sentry] Relay Coupler [Sentry] Relay Coupler [Hunter] Gatling Laser Gatling Laser Gauss Rifle Coil Gun Mini Grenade Launcher Mini Grenade Launcher Remote Datajack Remote Datajack [Rating: 62] Favorites ----------- Power Improved Deuterium Engine Engine Improved Deuterium Engine Power Core Light Nuclear Core Propulsion Armored Wheel Treads Light Treads Leg Flexi-carbon Leg Wheel Armored Wheel Utility Huge Storage Unit Device Improved Heat Sink Storage Huge Storage Unit Processor Improved Salvage Targeting Computer Protection Powered Armor Weapon Enhanced Autogun Energy Gun Gatling Laser Ballistic Gun Enhanced Autogun Ballistic Cannon Gauss Cannon Launcher Mini Grenade Launcher Build | -11 -10 -10 -10 -9 -8 -8 -8 -8 -7 -7 -7 -7 ------- Run | Jun Mat Min Exi Min Mat Gar Mat Gar Fac Gar Fac Gar Slots Evolved 6 | . . . . . 4 . . . 2 . . . Power . | . . . . . . . . . . . . . Propulsion 2 | . . . . . . . . . 2 . . . Utility 2 | . . . . . 2 . . . . . . . Weapon 2 | . . . . . 2 . . . . . . . Parts Attached 102 | . 13 1 . 2 24 16 6 4 16 17 1 2 Power 10 | . 3 . . . 4 1 . . 2 . . . Engine 9 | . 3 . . . 3 1 . . 2 . . . Core 1 | . . . . . 1 . . . . . . . Reactor . | . . . . . . . . . . . . . Propulsion 18 | . 4 . . . 5 . . . 4 5 . . Treads 7 | . 2 . . . 3 . . . 2 . . . Leg 7 | . 2 . . . . . . . . 5 . . Wheel 4 | . . . . . 2 . . . 2 . . . Hover . | . . . . . . . . . . . . . Flight . | . . . . . . . . . . . . . Utility 22 | . 2 . . . 7 7 2 . 2 1 1 . Device 9 | . 1 . . . 4 2 1 . 1 . . . Storage 2 | . 1 . . . 1 . . . . . . . Processor 2 | . . . . . . 1 . . 1 . . . Hackware . | . . . . . . . . . . . . . Protection 9 | . . . . . 2 4 1 . . 1 1 . Artifact . | . . . . . . . . . . . . . Weapon 52 | . 4 1 . 2 8 8 4 4 8 11 . 2 Energy Gun 23 | . 4 1 . 1 4 5 3 . 3 2 . . Energy Cannon . | . . . . . . . . . . . . . Ballistic Gun 13 | . . . . . 2 . 1 2 3 5 . . Ballistic Cannon 2 | . . . . . 1 1 . . . . . . Launcher 14 | . . . . 1 1 2 . 2 2 4 . 2 Special Weapon . | . . . . . . . . . . . . . Impact Weapon . | . . . . . . . . . . . . . Slashing Weapon . | . . . . . . . . . . . . . Piercing Weapon . | . . . . . . . . . . . . . Special Melee Weapon . | . . . . . . . . . . . . . Unidentified Prototypes 4 | . . . . . . . 2 . 2 . . . Parts Lost 26 | . . . . . 10 6 . . 4 5 . 1 Power 4 | . . . . . 2 1 . . 1 . . . Propulsion 7 | . . . . . 2 . . . 3 2 . . Utility 4 | . . . . . 2 1 . . . 1 . . Weapon 11 | . . . . . 4 4 . . . 2 . 1 Highest Loss Streak 9 | . . . . . 9 5 . . 2 4 . 1 To Critical Strikes . | . . . . . . . . . . . . . Average Slot Usage (%) 95 | . 99 100 100 100 95 99 99 100 96 83 97 92 Engine 9 | . 14 14 14 14 8 9 9 9 6 7 7 7 Treads 10 | . 24 28 28 28 10 . . . 8 7 . . Leg 2 | . 3 . . . . . . . . 7 30 30 Wheel 7 | . . . . . 6 18 18 18 18 . . . Device 11 | . 13 14 14 14 18 9 9 9 6 7 7 7 Storage 9 | . 14 14 14 14 9 9 9 9 7 7 7 7 Processor 4 | . . . . . . 8 9 9 7 7 4 . Protection 5 | . . . . . 7 8 8 9 7 7 7 7 Energy Gun 16 | . 8 28 28 27 16 12 28 27 16 13 15 15 Ballistic Gun 11 | . 19 . . . 8 15 7 8 13 13 15 15 Ballistic Cannon 2 | . . . . . 7 7 . . . . . . Naked Turns . | . . . . . . . . . . . . . Heaviest Build 127 | 12 30 29 29 29 113 116 115 115 117 117 127 127 Greatest Support 75 | 20 40 40 40 40 40 24 24 24 48 75 70 70 Greatest Overweight (x) 9 | . . . . . 4 4 4 4 9 9 1 1 Average Overweight (x) 2 | . . . . . 2 4 4 4 3 2 1 1 Largest Inventory Capacity 25 | . 15 15 15 15 25 25 25 25 25 25 25 25 Average Capacity 21 | . 14 15 15 15 18 25 25 25 25 25 25 25 Most Carried 25 | . 15 15 15 15 20 25 25 25 25 25 25 25 Average Carried 19 | . 12 14 14 14 14 23 22 25 24 23 25 24 Final Capacity 25 | 8 15 15 15 15 25 25 25 25 25 25 25 25 Final Carried 25 | 6 15 15 15 15 20 19 25 25 24 25 25 24 Class Distribution -------------------- 35% | Bothacker-Skirmisher 28% | Mutant 11% | Scavenger-Skirmisher 8% | Botlord-Skirmisher 6% | Skirmisher 4% | Bothacker-Mutant 4% | Scavenger-Mutant Dominant Class ---------------- Mutant | -10/Materials Mutant | -10/Mines Mutant | -10/Exiles Mutant | -9/Mines Scavenger-Skirmisher | -8/Materials Skirmisher | -8/Garrison Bothacker-Skirmisher | -8/Materials Bothacker-Skirmisher | -8/Garrison Bothacker-Skirmisher | -7/Factory Bothacker-Skirmisher | -7/Garrison Bothacker-Skirmisher | -7/Factory Botlord-Skirmisher | -7/Garrison Resources | -11 -10 -10 -10 -9 -8 -8 -8 -8 -7 -7 -7 -7 ----------- Run | Jun Mat Min Exi Min Mat Gar Mat Gar Fac Gar Fac Gar Matter Collected 3127 | 200 493 10 . 40 563 831 77 156 261 437 . 59 Remotely . | . . . . . . . . . . . . . Salvage Created 4581 | . 645 169 . 108 664 1130 294 473 495 544 . 59 Parts 233 | . 45 10 . 8 30 52 13 26 23 23 . 3 Haulers Intercepted 5 | . 2 . . . 1 . 1 . 1 . . . Recyclers Shooed 5 | . 3 . . . 2 . . . . . . . Parts Field Recycled . | . . . . . . . . . . . . . Retrieved Matter . | . . . . . . . . . . . . . Parts Self-Destructed . | . . . . . . . . . . . . . Prevented . | . . . . . . . . . . . . . Kills | -11 -10 -10 -10 -9 -8 -8 -8 -8 -7 -7 -7 -7 ------- Run | Jun Mat Min Exi Min Mat Gar Mat Gar Fac Gar Fac Gar Combat Hostiles Destroyed 105 | . 14 2 . 2 11 26 5 15 12 17 . 1 Guns 64 | . 14 2 . 1 5 16 5 7 6 7 . 1 Cannons 6 | . . . . . 4 2 . . . . . . AOE 34 | . . . . 1 2 7 . 8 6 10 . . Classes Destroyed 14 | . 6 2 . 1 3 1 . . 1 . . . Worker 6 | . 3 . . 1 2 . . . . . . . Builder 2 | . . . . . 1 . . . 1 . . . Tunneler 2 | . . 1 . 1 . . . . . . . . Hauler 5 | . 2 . . . 1 . 1 . 1 . . . Recycler 2 | . . 1 . . 1 . . . . . . . Operator 2 | . 1 . . . 1 . . . . . . . Watcher 4 | . 2 . . . 2 . . . . . . . Swarmer 22 | . 6 . . . . 3 . 4 1 8 . . Grunt 56 | . 8 2 . 1 7 15 4 8 6 5 . . Brawler 1 | . . . . . . . . . 1 . . . Duelist 5 | . . . . 1 . . 1 . 1 2 . . Sentry 14 | . . . . . 3 5 . 3 2 . . 1 Hunter 2 | . . . . . 1 . . . . 1 . . Programmer 5 | . . . . . . 3 . . 1 1 . . Thug 1 | . . . . . . 1 . . . . . . Butcher 1 | . . . . . . 1 . . . . . . Best Kill Streak 4 | . 3 2 . 3 3 4 2 4 4 4 . 1 Combat Bots Only 4 | . 3 2 . 2 2 4 2 4 4 4 . 1 Max Kills in Single Turn 2 | . 1 1 . 1 2 2 1 2 1 2 . 1 Gunslinging . | . . . . . . . . . . . . . Exploded 2 | . . . . 1 1 2 . 2 1 2 . . Melee . | . . . . . . . . . . . . . Uniques/NPCs Destroyed . | . . . . . . . . . . . . . Combat | -11 -10 -10 -10 -9 -8 -8 -8 -8 -7 -7 -7 -7 -------- Run | Jun Mat Min Exi Min Mat Gar Mat Gar Fac Gar Fac Gar Damage Taken 5941 | . 713 67 . . 1279 1036 83 187 1436 666 . 474 Core 1185 | . 75 33 . . 228 111 . 34 628 26 . 50 Absorbed by Shields . | . . . . . . . . . . . . . Core Remaining (%) 62 | 100 . . . 56 . . . 32 . . . . Volleys Fired 290 | . 78 8 . 5 41 62 7 19 31 34 . 5 Largest 4 | . 2 2 . 2 4 4 4 4 4 4 . 4 Hottest 244 | . 100 115 . 115 215 221 240 240 244 208 . 208 Shots Fired 773 | . 156 16 . 8 110 212 28 53 85 89 . 16 Gun 653 | . 156 16 . 6 82 154 28 47 72 76 . 16 Cannon 76 | . . . . . 23 53 . . . . . . Launcher 44 | . . . . 2 5 5 . 6 13 13 . . Special . | . . . . . . . . . . . . . Kinetic 404 | . 121 . . . 49 140 5 11 28 40 . 10 Thermal 265 | . 35 16 . 6 56 11 19 36 44 36 . 6 Explosive 44 | . . . . 2 5 5 . 6 13 13 . . Electromagnetic 60 | . . . . . . 56 4 . . . . . Robot Hit Streak 18 | . 9 11 . 6 8 15 6 12 18 10 . 9 Robot Miss Streak 7 | . 7 1 . 1 3 3 2 2 2 6 . 2 Penetration Max 1 | . . . . . . 1 . . . . . . Secondary Targets 2 | . . . . . . . . 1 . 1 . . Max Gunslinging Chain 1 | . . . . . . . . 1 . 1 . . Shots Hit Robots 458 | . 101 14 . 4 59 107 23 33 51 53 . 13 Core Hits 260 | . 32 7 . 6 34 51 14 33 40 40 . 3 Critical Kills . | . . . . . . . . . . . . . Critical Parts Destroyed 1 | . . . . . . . . . . 1 . . Critical Strikes 16 | . 2 . . . 2 5 . . 6 1 . . Burn 11 | . 2 . . . . 3 . . 6 . . . Destroy 1 | . . . . . . . . . . 1 . . Blast 4 | . . . . . 2 2 . . . . . . Melee Attacks . | . . . . . . . . . . . . . Impact . | . . . . . . . . . . . . . Slashing . | . . . . . . . . . . . . . Piercing . | . . . . . . . . . . . . . Sneak Attacks . | . . . . . . . . . . . . . Combat Hostiles . | . . . . . . . . . . . . . Follow-up Attacks . | . . . . . . . . . . . . . Damage Inflicted 11242 | . 1233 175 . 190 1404 2729 435 1132 1803 1886 . 255 Guns 6806 | . 1223 175 . 37 737 1456 435 567 989 932 . 255 Cannons 925 | . . . . . 359 566 . . . . . . Explosions 3474 | . . . . 153 305 707 . 565 790 954 . . Melee . | . . . . . . . . . . . . . Ramming 37 | . 10 . . . 3 . . . 24 . . . Kinetic 4032 | . 950 . . . 605 1526 49 79 246 435 . 142 Thermal 3604 | . 273 175 . 37 491 400 328 488 802 497 . 113 Explosive 3118 | . . . . 153 305 410 . 565 731 954 . . Electromagnetic 451 | . . . . . . 393 58 . . . . . Impact . | . . . . . . . . . . . . . Slashing . | . . . . . . . . . . . . . Piercing . | . . . . . . . . . . . . . Highest Corruption 3 | . . . . . . 1 1 1 2 3 3 3 Average Corruption 1 | . . . . . . 1 1 1 1 2 3 3 Corruption Purged . | . . . . . . . . . . . . . Corruption Blocked . | . . . . . . . . . . . . . Effects 45 | . . . . . . 4 2 9 2 25 . 3 Message Errors 12 | . . . . . . . . 1 . 8 . 3 Matter Fused 10 | . . . . . . 3 . 1 . 6 . . Heat Flow Errors 6 | . . . . . . . . . 2 4 . . Energy Discharges 4 | . . . . . . . . 1 . 3 . . Parts Fused 2 | . . . . . . . 1 1 . . . . Data Loss (minor) 3 | . . . . . . . 1 1 . 1 . . Data Loss (major) 5 | . . . . . . . . 3 . 2 . . Misfires 1 | . . . . . . . . 1 . . . . Alerts 1 | . . . . . . 1 . . . . . . Weapon Failures 1 | . . . . . . . . . . 1 . . Overload Shots . | . . . . . . . . . . . . . Overflow Damage 102 | . . . . 17 25 7 . 16 . 37 . . Projectiles 27 | . . . . . 25 2 . . . . . . Explosions 75 | . . . . 17 . 5 . 16 . 37 . . Melee . | . . . . . . . . . . . . . Knockbacks 11 | . . . . . 4 7 . . . . . . Impact . | . . . . . . . . . . . . . Kinetic 11 | . . . . . 4 7 . . . . . . Secondary . | . . . . . . . . . . . . . Self-Inflicted Damage 200 | . . . . . 68 39 . . 52 41 . . Shots 6 | . . . . . 2 1 . . 1 2 . . Rammed 6 | . 1 . . . 1 . . . 4 . . . Targets Rammed 6 | . 1 . . . 1 . . . 4 . . . Kicked . | . . . . . . . . . . . . . Crushed . | . . . . . . . . . . . . . Highest Temperature 904 | . 20 25 . 24 257 513 240 215 904 371 . 328 Average Temperature 124 | . 4 14 . 12 101 119 112 99 233 125 . 173 Received Heat Transfer 1713 | . 255 36 . . 405 486 45 90 138 108 . 150 Effects 22 | . . . . . . 3 . . 17 1 . 1 Shutdowns 5 | . . . . . . 2 . . 2 1 . . Energy Bleed 3 | . . . . . . . . . 3 . . . Interference 3 | . . . . . . 1 . . 1 . . 1 Damage (minor) 4 | . . . . . . . . . 4 . . . Damage (major) 2 | . . . . . . . . . 2 . . . Damage (core) 5 | . . . . . . . . . 5 . . . Siege Activations . | . . . . . . . . . . . . . Robots Corrupted . | . . . . . . . . . . . . . Combat Hostiles . | . . . . . . . . . . . . . Parts Fried . | . . . . . . . . . . . . . Impact Corruptions . | . . . . . . . . . . . . . Robots Melted 1 | . . . . . . 1 . . . . . . Combat Hostiles 1 | . . . . . . 1 . . . . . . Parts Melted 23 | . 2 1 . . 1 4 3 3 7 2 . . Heat Transferred 8809 | . 856 518 . 111 1221 756 733 1084 2155 1125 . 250 Parts Sabotaged . | . . . . . . . . . . . . . Parts Stolen . | . . . . . . . . . . . . . Parts Stripped . | . . . . . . . . . . . . . Power Chain Reactions 4 | . . . . . . 4 . . . . . . Missiles Intercepted . | . . . . . . . . . . . . . Alert | -11 -10 -10 -10 -9 -8 -8 -8 -8 -7 -7 -7 -7 ------- Run | Jun Mat Min Exi Min Mat Gar Mat Gar Fac Gar Fac Gar Peak Influence 1187 | . 142 107 . 65 159 1187 705 815 621 1036 543 415 Initial 578 | . . 32 . . . 103 578 458 427 342 543 380 Average 408 | . 65 100 . 27 60 708 637 671 438 697 543 411 Maximum Alert Level 4 | . . . . . . 4 3 3 2 3 2 2 Low Security (%) 40 | . 100 100 . 100 100 1 . . . . . . Level 1 4 | . . . . . . 16 . . 8 3 . 14 Level 2 31 | . . . . . . 31 83 32 91 45 100 85 Level 3 23 | . . . . . . 43 16 67 . 50 . . Level 4 . | . . . . . . 6 . . . . . . Level 5 . | . . . . . . . . . . . . . High Security . | . . . . . . . . . . . . . Max Security . | . . . . . . . . . . . . . Squads Dispatched 11 | . 3 . . . 3 . 2 . 3 . . . Investigation 3 | . 1 . . . 2 . . . . . . . Extermination 2 | . . . . . . . . . 2 . . . Reinforcement 4 | . 2 . . . 1 . . . 1 . . . Assault . | . . . . . . . . . . . . . Garrison 2 | . . . . . . . 2 . . . . . Intercept . | . . . . . . . . . . . . . Searches Triggered . | . . . . . . . . . . . . . Construction Impeded . | . . . . . . . . . . . . . Haulers Reinforced 1 | . . . . . . . . . 1 . . . Active Scanning Responses . | . . . . . . . . . . . . . Cargo Convoy Interrupts . | . . . . . . . . . . . . . Stealth | -11 -10 -10 -10 -9 -8 -8 -8 -8 -7 -7 -7 -7 --------- Run | Jun Mat Min Exi Min Mat Gar Mat Gar Fac Gar Fac Gar Distress Signals 5 | . 2 . . . 2 . . . 1 . . . Communications Jammed . | . . . . . . . . . . . . . Distress Signals . | . . . . . . . . . . . . . Times Spotted 148 | . 26 2 . 2 25 32 5 13 17 17 . 9 Peak Tracking Total 8 | . 4 2 . 2 4 4 2 6 4 5 . 8 Tactical Retreats 7 | . 2 . . . 1 2 . . 1 1 . . Traps | -11 -10 -10 -10 -9 -8 -8 -8 -8 -7 -7 -7 -7 ------- Run | Jun Mat Min Exi Min Mat Gar Mat Gar Fac Gar Fac Gar Traps Triggered 20 | . 2 . . . 1 6 . 4 1 5 . 1 Indirectly . | . . . . . . . . . . . . . Trap Hack Attempts . | . . . . . . . . . . . . . Triggered . | . . . . . . . . . . . . . Disarmed . | . . . . . . . . . . . . . Reprogrammed . | . . . . . . . . . . . . . Reused . | . . . . . . . . . . . . . Traps Extracted . | . . . . . . . . . . . . . Installed . | . . . . . . . . . . . . . Triggered . | . . . . . . . . . . . . . Machines | -11 -10 -10 -10 -9 -8 -8 -8 -8 -7 -7 -7 -7 ---------- Run | Jun Mat Min Exi Min Mat Gar Mat Gar Fac Gar Fac Gar Machines Disabled 10 | . . 1 . . 2 4 . . 2 1 . . Max in Single Turn 2 | . . 1 . . 1 1 . . 2 1 . . Garrison Relay 4 | . . . . . . 3 . . . 1 . . Machines Repaired . | . . . . . . . . . . . . . Machines Sabotaged . | . . . . . . . . . . . . . Overloaded Fab Kills . | . . . . . . . . . . . . . Hacking | -11 -10 -10 -10 -9 -8 -8 -8 -8 -7 -7 -7 -7 --------- Run | Jun Mat Min Exi Min Mat Gar Mat Gar Fac Gar Fac Gar Machines Accessed 24 | . 5 . 2 . 6 2 1 1 6 . 1 . Terminals 14 | . 4 . . . 4 2 . 1 3 . . . Fabricators 2 | . . . . . . . . . 2 . . . Repair Stations 1 | . 1 . . . . . . . . . . . Recycling Units . | . . . . . . . . . . . . . Scanalyzers 1 | . . . . . 1 . . . . . . . Garrison Access 4 | . . . . . 1 . 1 . 1 . 1 . Total Hacks 62 | . 14 . 9 . 19 3 2 3 11 . 1 . Successful 36 | . 3 . 9 . 14 1 2 . 6 . 1 . Failed 26 | . 11 . . . 5 2 . 3 5 . . . Catastrophic 6 | . 1 . . . . 1 . 2 2 . . . Database Lockouts . | . . . . . . . . . . . . . Manual 17 | . . . 1 . 9 . . . 7 . . . Terminals 42 | . 13 . . . 16 3 . 3 7 . . . Fabricators 3 | . . . . . . . . . 3 . . . Repair Stations 1 | . 1 . . . . . . . . . . . Recycling Units . | . . . . . . . . . . . . . Scanalyzers 2 | . . . . . 2 . . . . . . . Garrison Access 5 | . . . . . 1 . 2 . 1 . 1 . Terminal Hacks 20 | . 3 . 9 . 6 1 . . 1 . . . Record 8 | . . . 8 . . . . . . . . . Prototype ID Bank 2 | . 2 . . . . . . . . . . . Emergency Access Points 1 | . . . . . . 1 . . . . . . Garrison Index 1 | . . . . . . . . . 1 . . . Unreport Threat 3 | . 1 . . . 2 . . . . . . . Transport Status 1 | . . . . . 1 . . . . . . . Hauler Manifests 2 | . . . . . 2 . . . . . . . Zone Layout 1 | . . . . . 1 . . . . . . . EX-Prototype ID Bank 1 | . . . 1 . . . . . . . . . Fabricator Hacks 2 | . . . . . . . . . 2 . . . Network Status 1 | . . . . . . . . . 1 . . . Build 1 | . . . . . . . . . 1 . . . Repair Station Hacks . | . . . . . . . . . . . . . Recycling Unit Hacks . | . . . . . . . . . . . . . Scanalyzer 2 | . . . . . 2 . . . . . . . Insert Component 1 | . . . . . 1 . . . . . . . Analyze 1 | . . . . . 1 . . . . . . . Garrison Access Hacks 5 | . . . . . 1 . 2 . 1 . 1 . Unlock Access 4 | . . . . . 1 . 1 . 1 . 1 . Coupler Status 1 | . . . . . . . 1 . . . . . Unauthorized Hacks 6 | . . . . . 4 . . . 2 . . . Terminals 6 | . . . . . 4 . . . 2 . . . Botnet 6 | . . . . . 4 . . . 2 . . . Fabricators . | . . . . . . . . . . . . . Repair Stations . | . . . . . . . . . . . . . Recycling Units . | . . . . . . . . . . . . . Scanalyzers . | . . . . . . . . . . . . . Garrison Access . | . . . . . . . . . . . . . Data Cores Recovered . | . . . . . . . . . . . . . Used . | . . . . . . . . . . . . . Hacking Detections 18 | . 5 . . . 5 1 1 1 4 . 1 . Full Trace Events 3 | . 1 . . . 1 1 . . . . . . Feedback Events . | . . . . . . . . . . . . . Feedback Blocked . | . . . . . . . . . . . . . Robot Schematics Acquired . | . . . . . . . . . . . . . Robots Built . | . . . . . . . . . . . . . Authchips . | . . . . . . . . . . . . . Time . | . . . . . . . . . . . . . Total Robot Build Rating . | . . . . . . . . . . . . . Part Schematics Acquired 1 | . . . . . 1 . . . . . . . Parts Built 2 | . . . . . . . . . 2 . . . Authchips . | . . . . . . . . . . . . . Time 95 | . . . . . . . . . 95 . . . Total Part Build Rating 10 | . . . . . . . . . 10 . . . Parts Repaired . | . . . . . . . . . . . . . Time . | . . . . . . . . . . . . . Parts Recycled . | . . . . . . . . . . . . . Recycled Matter . | . . . . . . . . . . . . . Retrieved Matter . | . . . . . . . . . . . . . Retrieved Components . | . . . . . . . . . . . . . Parts Scanalyzed 1 | . . . . . 1 . . . . . . . Part Schematics Acquired 1 | . . . . . 1 . . . . . . . Parts Damaged . | . . . . . . . . . . . . . Bothacking | -11 -10 -10 -10 -9 -8 -8 -8 -8 -7 -7 -7 -7 ------------ Run | Jun Mat Min Exi Min Mat Gar Mat Gar Fac Gar Fac Gar Used RIF Installer 4 | . . . . . . 1 . 1 . 2 . . Coupler Efficiency 1 | . . . . . . . . . . 1 . . Zone Cloak 1 | . . . . . . . . . . 1 . . Patrol Navigation 1 | . . . . . . . . 1 . . . . Robots Hacked . | . . . . . . . . . . . . . Non-combat . | . . . . . . . . . . . . . Combat . | . . . . . . . . . . . . . Robot Hacks Applied . | . . . . . . . . . . . . . Relay Couplers Released 15 | . . . . . . 12 . . . 3 . . Machine Destruction 15 | . . . . . . 12 . . . 3 . . Fabnet Peak Effective % . | . . . . . . . . . . . . . Robots Rewired . | . . . . . . . . . . . . . Allies Hacked . | . . . . . . . . . . . . . Hacks Repelled . | . . . . . . . . . . . . . Allies | -11 -10 -10 -10 -9 -8 -8 -8 -8 -7 -7 -7 -7 -------- Run | Jun Mat Min Exi Min Mat Gar Mat Gar Fac Gar Fac Gar Total Allies 2 | . . . . . . 2 . . . . . . Largest Group 2 | . . . . . . 2 . . . . . . Highest-Rated Group 56 | . . . . . . 56 . . . . . . Highest-Rated Ally 31 | . . . . . . 31 . . . . . . Total Orders . | . . . . . . . . . . . . . Ally Attacks 12 | . . . . . . 12 . . . . . . Total Damage 185 | . . . . . . 185 . . . . . . Kills 5 | . . . . . . 5 . . . . . . Allies Corrupted . | . . . . . . . . . . . . . Allies Melted . | . . . . . . . . . . . . . Intel | -11 -10 -10 -10 -9 -8 -8 -8 -8 -7 -7 -7 -7 ------- Run | Jun Mat Min Exi Min Mat Gar Mat Gar Fac Gar Fac Gar Robot Analysis Total . | . . . . . . . . . . . . . Derelict Logs Recovered . | . . . . . . . . . . . . . Drone Launches . | . . . . . . . . . . . . . Drone Recoveries . | . . . . . . . . . . . . . Exploration | -11 -10 -10 -10 -9 -8 -8 -8 -8 -7 -7 -7 -7 ------------- Run | Jun Mat Min Exi Min Mat Gar Mat Gar Fac Gar Fac Gar Turns Passed 9314 | . 1441 218 370 432 1467 1283 275 766 1054 1891 28 89 Spaces Moved 4145 | 1 725 119 231 259 603 656 95 414 471 535 14 22 Core . | . . . . . . . . . . . . . Treads 1822 | . 610 119 231 259 301 . . . . 302 . . Legs 357 | 1 115 . . . . . . . . 205 14 22 Wheels 1966 | . . . . . 302 656 95 414 471 28 . . Hover . | . . . . . . . . . . . . . Flight . | . . . . . . . . . . . . . Fastest Speed 120 | 120 120 160 160 160 120 150 150 150 120 190 190 190 Average Speed 181 | 120 153 160 160 160 195 150 150 150 143 326 190 190 Slowest Speed 480 | 120 160 160 160 160 320 150 150 150 225 480 190 190 Overloaded Moves . | . . . . . . . . . . . . . Propulsion Burnouts . | . . . . . . . . . . . . . Robots Hopped . | . . . . . . . . . . . . . Cave-ins Triggered . | . . . . . . . . . . . . . Exploration Rate (%) 39 | 2 98 32 60 58 44 74 10 54 19 61 1 6 Regions Visited 12 Branch Regions 3 Pre-discovered Areas 1 | . . . 1 . . . . . . . . . Known Exits Taken 4 | . . . . . 1 . 1 . 1 . 1 . Unknown Exits Taken 5 | 1 1 1 1 1 . . . . . . . . Scrap Searched . | . . . . . . . . . . . . . Spaces Dug . | . . . . . . . . . . . . . Terrain Destroyed 231 | . . . . 5 53 47 . 13 50 63 . . Melee . | . . . . . . . . . . . . . Projectile 14 | . . . . . 13 1 . . . . . . AOE 217 | . . . . 5 40 46 . 13 50 63 . . Terrain Rammed . | . . . . . . . . . . . . . Walls Destroyed . | . . . . . . . . . . . . . Machines Disabled . | . . . . . . . . . . . . . Actions | -11 -10 -10 -10 -9 -8 -8 -8 -8 -7 -7 -7 -7 --------- Run | Jun Mat Min Exi Min Mat Gar Mat Gar Fac Gar Fac Gar Total 5382 | . 902 132 232 268 808 818 209 522 801 615 16 59 Wait 621 | . 58 . . 1 107 21 93 55 255 1 . 30 Move 4132 | . 724 118 230 258 602 655 94 412 470 534 13 22 Hop . | . . . . . . . . . . . . . Pick Up 75 | . 14 2 1 1 21 11 5 . 12 8 . . Fast Attach 28 | . 5 1 . . 8 1 3 . 5 4 1 . Attach 27 | . . . . . 11 6 . . 5 4 . 1 Detach 2 | . . . . . 2 . . . . . . . Swap 47 | . 8 . . 2 5 9 3 4 6 9 . 1 Drop 63 | . 14 3 1 1 10 10 4 . 13 5 2 . Fire 290 | . 78 8 . 5 41 62 7 19 31 34 . 5 Melee . | . . . . . . . . . . . . . Ram 4 | . . . . . . . . . 4 . . . Kick . | . . . . . . . . . . . . . Crush 2 | . 1 . . . 1 . . . . . . . Escape Stasis 91 | . . . . . . 43 . 32 . 16 . . Rewire . | . . . . . . . . . . . . . Trap . | . . . . . . . . . . . . . Miscellaneous . | . . . . . . . . . . . . . Route ------- -11/Junkyard -10/Materials (discovered 4 exits: [*Mat x3] / [*Min]) -10/Mines (discovered 2 exits: [*Mat] / *Exi) -10/Exiles -9/Mines -8/Materials (discovered 2 exits: *Fac / Gar) -8/Garrison (discovered 2 exits: *Mat x2) -8/Materials -8/Garrison (discovered 3 exits: *Fac x3) -7/Factory (discovered 2 exits: [*Fac] / Gar) -7/Garrison (discovered 2 exits: *Fac x2) -7/Factory -7/Garrison History --------- Turn | Location | Event 1 | -11/Junkyard | Discovered new exit (range 0) 1 | -11/Junkyard | Entered Materials 316 | -10/Materials | Build established: Mutant 451 | -10/Materials | Discovered new exit (range 14) 845 | -10/Materials | Discovered new exit (range 16) 941 | -10/Materials | Discovered new exit (range 4) 1307 | -10/Materials | Discovered new exit (range 16) 1442 | -10/Materials | Entered Mines 1443 | -10/Mines | Assembled infested the area 1507 | -10/Mines | Met 8R-AWN 1564 | -10/Mines | Discovered new exit (range 7) 1654 | -10/Mines | Discovered new exit (range 5) 1660 | -10/Mines | Entered Exiles 1700 | -10/Exiles | Welcomed by 8R-AWN 1726 | -10/Exiles | Met EX-HEX 1769 | -10/Exiles | Met EX-BIN 1795 | -10/Exiles | Aligned with FarCom system 1796 | -10/Exiles | Given EX-Vault access code 1833 | -10/Exiles | Opened EX-Vault 1845 | -10/Exiles | Found Cloak of Protection 1881 | -10/Exiles | Warned to stay clear of 0b10 Research branches 1923 | -10/Exiles | Met EX-DEC 1940 | -10/Exiles | Learned location of Zion (-6) 2008 | -10/Exiles | Discovered new exit (range 15) 2030 | -10/Exiles | Left Exiles lab with Cloak of Protection 2030 | -10/Exiles | Entered Mines 2113 | -9/Mines | YI-UF0 nonchalantly dropped a Grenade Launcher on the ground 2181 | -9/Mines | Found a damaged Exp. Sensor Array with a note attached 2358 | -9/Mines | A weapon hastily lodged in a ceiling crevice suddenly fell to the ground 2406 | -9/Mines | Discovered new exit (range 15) 2462 | -9/Mines | Entered Materials 2462 | -8/Materials | Evolved 4 slots: Utility x2, Weapon x2 2597 | -8/Materials | Lost 9 parts (2p2n2u3w) 2939 | -8/Materials | Build established: Scavenger-Skirmisher 3450 | -8/Materials | Discovered new exit (range 12) 3925 | -8/Materials | Identified exit to Garrison 3929 | -8/Materials | Entered Garrison 3997 | -8/Garrison | Rescued a captive Derelict 3999 | -8/Garrison | Rescued a captive Derelict 4076 | -8/Garrison | Triggered checkpoint 4098 | -8/Garrison | Core integrity fell below 50% 4161 | -8/Garrison | Garrison Relay disabled 4340 | -8/Garrison | Triggered checkpoint 4420 | -8/Garrison | Garrison Relay disabled 4496 | -8/Garrison | Triggered checkpoint 4508 | -8/Garrison | Triggered checkpoint 4582 | -8/Garrison | Triggered checkpoint 4621 | -8/Garrison | Garrison Relay disabled 4730 | -8/Garrison | Discovered new exit (range 10) 4757 | -8/Garrison | Installed Relay Interface Framework 4866 | -8/Garrison | Triggered checkpoint 4959 | -8/Garrison | Discovered new exit (range 10) 5065 | -8/Garrison | Lost 5 parts (1p4w) 5070 | -8/Garrison | Build established: Bothacker-Skirmisher 5212 | -8/Garrison | Entered Materials 5320 | -8/Materials | Found Powered Armor 5336 | -8/Materials | Garrison activated, responded to threat 5354 | -8/Materials | Found Powered Armor 5485 | -8/Materials | Identified exit to Garrison 5487 | -8/Materials | Entered Garrison 5502 | -8/Garrison | Triggered checkpoint 5644 | -8/Garrison | Triggered checkpoint 5771 | -8/Garrison | Discovered new exit (range 9) 5789 | -8/Garrison | Expanded RIF knowledge: Patrol Navigation 5850 | -8/Garrison | Triggered checkpoint 5915 | -8/Garrison | Discovered new exit (range 10) 5948 | -8/Garrison | Triggered checkpoint 6042 | -8/Garrison | Triggered checkpoint 6102 | -8/Garrison | Triggered checkpoint 6219 | -8/Garrison | Discovered new exit (range 15) 6253 | -8/Garrison | Entered Factory 6253 | -7/Factory | Evolved 2 slots: Propulsion x2 6534 | -7/Factory | Fabricated Plasma Rifle (x2) 6782 | -7/Factory | Discovered new exit (range 13) 7294 | -7/Factory | Core integrity fell below 50% 7299 | -7/Factory | Identified exit to Garrison 7302 | -7/Factory | Core integrity fell below 20% 7307 | -7/Factory | Entered Garrison 7409 | -7/Garrison | Lost 4 parts (1n1u2w) 7430 | -7/Garrison | Triggered checkpoint 7602 | -7/Garrison | Triggered checkpoint 7740 | -7/Garrison | Triggered checkpoint 7870 | -7/Garrison | Garrison Relay disabled 7933 | -7/Garrison | Expanded RIF knowledge: Zone Cloak 8311 | -7/Garrison | Discovered new exit (range 12) 8522 | -7/Garrison | Expanded RIF knowledge: Coupler Efficiency 8808 | -7/Garrison | Build established: Botlord-Skirmisher 8917 | -7/Garrison | Triggered checkpoint 8989 | -7/Garrison | Discovered new exit (range 10) 9054 | -7/Garrison | Triggered checkpoint 9198 | -7/Garrison | Entered Factory 9224 | -7/Factory | Identified exit to Garrison 9226 | -7/Factory | Entered Garrison 9315 | -7/Garrison | Destroyed by Y-54 Guardian with Gatling Laser Last Messages --------------- 09213_ Acquired Hrd. Heavy Armor Plating. 09224_ Connecting with Garrison Access... 09224_ Current location identified: Factory >>Unlock Access door unlocked. 09224_ EXIT=UNLOCKED: GARRISON LOCATION=GARRISON GOAL=ESCAPE 09226_ Receiving FarCom transmissions... 09227_ 4LA%JTNEBTFL 5GJRK|Q2,>, 09236_ Overheating: System interference. 09236_ Gatling Laser temporarily disabled. 09239_ Y-54 Guardian destroyed. 09246_ MO2XXP4X:CBFF,KAB>02RN1 09247_ Acquired 59 matter. 09311_ Triggered Alarm Trap. 09311_ An alarm sounds. 09312_ Plasma Rifle destroyed. 09312_ Y-54 Guardian springs to life. 09314_ DVMK5UDCLT%C&2Y1 VD5E,&:20P|P# Map ----- +----------------------------------------------------+ | ???????????????????????????????????????????????? | | ???????????????????????????????????????????????? | | ???????????????????????????????????????????????? | | ???????????????????????????????????????????????? | | ???????????????????????????????????????????????? | | ???????????????????????????????????????????????? | | ???????????????????????????????????????????????? | | ???????????????????????????????????????????????? | | ???????????????????????????????????????????????? | | ???????????????????????????????????????????????? | | ?????????????????????????#?????????????????????? | | ????????????????????????? ?????????????????????? | | ????????????????????????? ?????????????????????? | | ????????????????????????# ##???????????????????? | | ????????????????????????! !???????????????????? | | ????????????????????????! !???????????????????? | | ????????????????????????!bg!???????????????????? | | ????????????????????????!g !???????????????????? | | ????????????????????????# #???????????????????? | | ????????????????????????#g #???????????????????? | | ????????????????????????# #???????????????????? | | ???????????????????????## ##??????#####???????? | | ???????????????????????# YYY#??????# #???????? | | ?????????????###########Y///######## #???????? | | ?????????? ^ #???????? | | ?????????? @ #???????? | | ?????????? ^ [!!#???????? | | ?????????????######################## ##???????? | | ????????????????????????????????????###????????? | | ???????????????????????????????????????????????? | | ???????????????????????????????????????????????? | | ???????????????????????????????????????????????? | | ???????????????????????????????????????????????? | | ???????????????????????????????????????????????? | | ???????????????????????????????????????????????? | | ???????????????????????????????????????????????? | | ???????????????????????????????????????????????? | | ???????????????????????????????????????????????? | | ???????????????????????????????????????????????? | | ???????????????????????????????????????????????? | | ??????????????????ll??????????????Y????????????? | | ???????????????????????????????????????????????? | | ???????????????????????????????????????????????? | | ???????????????????????????????????????????????? | | ???????????????????????????????????????????????? | | ???????????????????????????????????????????????? | | ???????????????????????????????????????????????? | | ???????????????????????????????????????????????? | | ???????????????????????????????????????????????? | | ???????????????????????????????????????????????? | +----------------------------------------------------+ Best States ------------- Heat Dissipation 48 Coolant Potential 130 Energy Generation 18 Energy Capacity 310 Matter Stores 300 Matter Capacity 300 Sight Range 16 Terrain Scan Density 10 ECM Strength 1 Armor Coverage 600 Evasion (%) 55 Targeting Accuracy 8 Recoil Reduction 2 Salvage Targeting 2 Item Schematics ----------------- Lrg. Storage Unit | -8/Materials | Scanalyzed Robot Schematics ------------------ None Fabricated ------------ Plasma Rifle | x2 | -7/Factory | Preloaded Alien Tech Used ----------------- None Achievements -------------- None Challenges ------------ None Game ------ Seed ConcussivePropulsionBoosters Manual? 0 Play Time 00:59:21 Cumulative 59.0 hours Start 2023.03.11 @ 15:11:27 End 2023.03.11 @ 16:23:58 Sessions 1 Manual Loads 0 Difficulty Rogue Special Mode None Game No. 64 Rogue 64 Adventurer 0 Explorer 0 Win Type - Total 0 Types 0/0/0/0/0/0/0/0/0 Lore% 39 Gallery% 51 Achievement% 46 Wizard Run 0 Options --------- ASCII 0 Keyboard 0 Movement Mouse Keybinds 0 Fullscreen 1 Font 18/TerminusBold Map View 76x50 Tactical HUD 1 Map Filters NONE Filters NONE Steam 1 RUN: 1be1161f-eee7-48c6-afc4-2dead5ee5635